fUST/lending_fUST_20240120
["ID","MTS","AMOUNT","RATE_DAILY","PERIOD"]
[312294818,1705758454320,20867.97666951,0.000163,2]
[312294819,1705758456887,154.73694719,0.000163,2]
[312294820,1705758457293,154.73694719,0.000163,2]
[312294821,1705758457533,1696.16568403,0.000163,2]
[312294822,1705758459633,8758.89884321,0.000163,2]
[312294823,1705758459839,13715.67412401,0.000163,2]
[312294824,1705758461524,2835.44199559,0.000163,2]
[312294825,1705758463294,329.42705251,0.000163,2]
[312294826,1705758464494,260.78466531,0.000163,2]
[312294827,1705758464933,154.73694719,0.000163,2]
[312294828,1705758468167,526.58372141,0.000163,2]
[312294829,1705758468419,15909.91645662,0.000163,2]
[312294830,1705758468591,154.73694719,0.000163,2]
[312294831,1705758468656,156.90480438,0.000163,2]
[312294832,1705758468867,160.53973387,0.00016201,2]
[312294833,1705758468896,8001.61067914,0.000163,2]
[312294834,1705758469157,213.36686653,0.000163,2]
[312294835,1705758470704,687.73320843,0.000163,2]
[312294836,1705758472284,323.47024933,0.000163,2]
[312294837,1705758472317,16212.19988952,0.000163,2]
[312294838,1705758472580,3128.92217734,0.000163,2]
[312294839,1705758473880,1242.13158622,0.000163,2]
[312294840,1705758474050,166.61733879,0.000163,2]
[312294841,1705758474366,876.11923106,0.000163,2]
[312294842,1705758474886,155.13910239,0.000163,2]
[312294843,1705758476091,81184.25616528,0.000163,2]
[312294844,1705758476971,261.05411193,0.000163,2]
[312294845,1705758477291,328.6183136,0.000163,2]
[312294846,1705758477530,1696.16568403,0.000163,2]
[312294847,1705758477789,13715.67412401,0.000163,2]
[312294848,1705758477831,8758.89884321,0.000163,2]
[312294849,1705758479358,638.31637431,0.00016299,2]
[312294850,1705758479578,1359.28514359,0.000163,2]
[312294851,1705758480098,616.55903708,0.00016299,2]
[312294852,1705758480447,5000.0,0.00016299,2]
[312294853,1705758480498,327.4866573,0.000163,2]
[312294854,1705758480561,156.37609798,0.000163,2]
[312294855,1705758481056,154.73694719,0.000163,3]
[312294856,1705758482430,16063.60026391,0.000163,2]
[312294857,1705758482897,4327.16653239,0.000163,2]
[312294858,1705758483282,594.94951122,0.000163,2]
[312294859,1705758484151,526.58372141,0.000163,2]
[312294860,1705758484467,429.40505789,0.000163,2]
[312294861,1705758485154,212.54611774,0.000163,2]
[312294862,1705758485371,246.1219577,0.000163,2]
[312294863,1705758486657,174.39211177,0.000163,2]
[312294864,1705758486753,19861.0002391,0.000163,2]
[312294865,1705758486858,915.93181322,0.000163,2]
[312294866,1705758487032,265.38873656,0.000163,2]
[312294867,1705758488368,876.11923106,0.000163,2]
[312294868,1705758488708,687.73320843,0.000163,2]
[312294869,1705758490055,2038.4422792,0.00016299,2]
[312294870,1705758491374,2033.84808518,0.00016299,2]
[312294871,1705758491732,1740.4543568,0.00016299,2]
[312294872,1705758492060,166.8743014,0.000163,2]
[312294873,1705758492186,154.73694719,0.00016299,2]
[312294874,1705758492495,7957.69581218,0.000163,2]
[312294875,1705758492589,156.18534512,0.000163,2]
[312294876,1705758493482,588.14342429,0.00016299,2]
[312294877,1705758493536,1576.07376998,0.000163,2]
[312294878,1705758494096,442.22236085,0.000163,2]
[312294879,1705758494307,325.3211398,0.000163,2]
[312294880,1705758497287,556.20004448,0.000163,2]
[312294881,1705758497468,72827.02415122,0.000163,2]
[312294882,1705758497679,13715.67412401,0.000163,2]
[312294883,1705758497906,1251.72776186,0.000163,2]
[312294884,1705758498428,81184.25616528,0.000163,2]
[312294885,1705758498481,2242.39866587,0.00015811,2]
[312294886,1705758498857,629.51816761,0.000163,2]
[312294887,1705758498978,242.23005924,0.000163,2]
[312294888,1705758499047,154.73694719,0.0001467,2]
[312294889,1705758499339,453.79442752,0.000163,2]
[312294890,1705758499373,246.1219577,0.000163,2]
[312294891,1705758499632,4938.53915337,0.000163,2]
[312294892,1705758502160,524.82829318,0.000163,2]
[312294893,1705758502199,155.08684864,0.000163,2]
[312294894,1705758502750,225.83294318,0.000163,2]
[312294895,1705758502782,14577.86846979,0.000163,2]
[312294896,1705758504593,679.88871879,0.000163,2]
[312294897,1705758504678,287.13703229,0.000163,2]
[312294898,1705758504978,452.57187784,0.000163,2]
[312294899,1705758506716,685.46446466,0.000163,2]
[312294900,1705758506895,154.73694719,0.000163,2]
[312294901,1705758507392,156.35727794,0.000163,2]
[312294902,1705758507489,330.05033898,0.000163,2]
[312294903,1705758507521,154.73694719,0.000163,2]
[312294904,1705758507616,2717.41472124,0.000163,2]
[312294905,1705758508050,1426.0365198,0.000163,2]
[312294906,1705758508187,154.73694719,0.000163,2]
[312294907,1705758508232,155.29375896,0.000163,2]
[312294908,1705758508633,1589.24944099,0.000163,2]
[312294909,1705758509024,155.1765376,0.000163,2]
[312294910,1705758509751,1631.04198005,0.000163,2]
[312294911,1705758510058,166.49194019,0.000163,2]
[312294912,1705758510838,260.54999403,0.000163,2]
[312294913,1705758511016,163.07750006,0.000163,2]
[312294914,1705758511051,162.51396869,0.000163,2]
[312294915,1705758511378,2033.84808518,0.000163,2]
[312294916,1705758512373,877.83219075,0.000163,2]
[312294917,1705758512500,5432.45612086,0.000163,2]
[312294918,1705758512529,185.30842625,0.000163,2]
[312294919,1705758512610,286.23049881,0.000163,2]
[312294920,1705758512892,166.49400102,0.000163,2]
[312294921,1705758514319,154.73694719,0.000163,2]
[312294922,1705758514863,155.30050826,0.000163,2]
[312294923,1705758514900,262.72030745,0.000163,2]
[312294924,1705758515655,13715.67412401,0.000163,2]
[312294925,1705758515771,20895.55414875,0.000163,2]
[312294926,1705758515807,1143.44104445,0.000163,2]
[312294927,1705758516104,81184.25616528,0.000163,2]
[312294928,1705758516180,276.90754294,0.000163,2]
[312294929,1705758516211,198.20629725,0.000163,2]
[312294930,1705758516859,712.05910052,0.000163,2]
[312294931,1705758517186,156.41515703,0.000163,2]
[312294932,1705758517295,594.5503399,0.000163,2]
[312294933,1705758517392,247.42593376,0.000163,2]
[312294934,1705758517443,199.18550125,0.000163,2]
[312294935,1705758517963,186.64563273,0.000163,2]
[312294936,1705758519165,212.67423732,0.000163,2]
[312294937,1705758519647,6250.30207369,0.000163,2]
[312294938,1705758520978,262.50822517,0.000163,2]
[312294939,1705758521049,154.73694719,0.0001467,2]
[312294940,1705758521374,229.77146713,0.000163,2]
[312294941,1705758522016,165.43971401,0.00016201,2]
[312294942,1705758522127,154.73694719,0.000163,2]
[312294943,1705758522786,154.73694719,0.000163,2]
[312294944,1705758522995,455.11464904,0.000163,2]
[312294945,1705758525510,299.85282769,0.000163,2]
[312294946,1705758526194,154.73694719,0.000163,2]
[312294947,1705758526871,282.85262805,0.000163,2]
[312294948,1705758528593,681.09996321,0.000163,2]
[312294949,1705758528624,1232.37129128,0.000163,2]
[312294950,1705758529380,1057.44028586,0.000163,2]
[312294951,1705758529761,20867.64635186,0.000163,2]
[312294952,1705758531506,495.75828293,0.000163,2]
[312294953,1705758531660,13715.67412401,0.000163,2]
[312294954,1705758532136,76657.89786517,0.000163,2]
[312294955,1705758541065,154.73694719,0.0001467,2]
[312294975,1705758632148,-154.73694719,0.00016102,3]
[312294977,1705758632158,-561.46174088,0.00016103,2]
[312294979,1705758632167,-154.73694719,0.00016104,2]
[312294981,1705758632177,-191.35107696,0.00016104,2]
[312294983,1705758632186,-15215.3741409,0.00016104,2]
[312294985,1705758632195,-154.73694719,0.00016105,2]
[312294987,1705758632205,-166.94378863,0.00016105,2]
[312294989,1705758632215,-3744.87402007,0.00016105,2]
[312294991,1705758632224,-554.79776327,0.00016294,2]
[312294993,1705758632233,-5181.4298309,0.00016295,2]
[312294995,1705758632242,-36953.29134027,0.00016295,2]
[312294997,1705758632252,-81184.25616528,0.00016296,2]
[312294999,1705758632261,-1438.69728082,0.00016297,2]
[312295001,1705758632271,-14054.09804668,0.00016297,2]
[312295003,1705758632280,-219.89220986,0.00016299,2]
[312295005,1705758632289,-3070.21347392,0.00016299,2]
[312295007,1705758632298,-179.86324972,0.000163,2]
[312295009,1705758632307,-201.35995504,0.000163,2]
[312295011,1705758632316,-177.9515869,0.000163,2]
[312295013,1705758632325,-230.34069773,0.000163,2]
[312295015,1705758632334,-156.69391357,0.00016301,2]
[312295017,1705758632343,-624.50993442,0.00016301,2]
[312295019,1705758632352,-252.4312394,0.00016301,2]
[312295021,1705758632361,-155.24754816,0.00016301,2]
[312295023,1705758632370,-303.89001627,0.00016301,2]
[312295025,1705758632379,-299.29266415,0.00016301,2]
[312295027,1705758632387,-192.26880532,0.00016308,2]
[312295029,1705758632396,-281.56928792,0.00016308,2]
[312295030,1705758632405,-164.6047724,0.00016323,2]
[312295032,1705758632415,-433.21650898,0.00016326,2]
[312295034,1705758632424,-154.95351395,0.00016347,2]
[312295036,1705758632433,-154.86062544,0.0001638,2]
[312295038,1705758632442,-454.09289174,0.00016387,2]
[312295040,1705758632451,-180.80173683,0.00016387,2]
[312295042,1705758632460,-260.35855748,0.00016388,2]
[312295044,1705758632469,-2102.56602861,0.00016498,2]
[312295046,1705758632478,-2073.0632604,0.00016498,2]
[312295049,1705758632488,-272.47884373,0.000165,2]
[312295050,1705758632497,-470.52459336,0.00016503,2]
[312295052,1705758632506,-200.0,0.00017125,2]
[312295054,1705758632515,-874.04705685,0.00017235,2]
[312295056,1705758632524,-295.94262131,0.00017553,2]
[312295058,1705758632534,-789.45200119,0.00017554,2]
[312295060,1705758632542,-5259.68833855,0.00017898,2]
[312295090,1705758639802,-166.94378863,0.00016101,2]
[312295091,1705758639813,-1218.69603324,0.00017898,2]
[312295092,1705758639826,-4053.40092792,0.00017898,2]
[312295093,1705758639836,-165.439714,0.00018738,2]
[312295094,1705758639846,-280.0,0.00018838,2]
[312295095,1705758639855,-1010.64614049,0.000189,2]
[312295096,1705758639865,-1581.76828075,0.00019,2]
[312295097,1705758639874,-165.9007148,0.00019178,2]
[312295098,1705758639883,-170.086127,0.00019178,2]
[312295099,1705758639893,-167.36624,0.00019178,2]
[312295100,1705758639902,-319.89597695,0.000195,2]
[312295101,1705758639914,-794.2495048,0.000195,2]
[312295102,1705758639924,-824.03065617,0.000197,2]
[312295103,1705758639934,-154.73694719,0.0002,2]
[312295104,1705758639944,-849.96832798,0.0002,2]
[312295105,1705758639953,-1197.48170656,0.0002,2]
[312295106,1705758639963,-678.35754423,0.0002,2]
[312295107,1705758639973,-154.73694719,0.0002,2]
[312295108,1705758639982,-571.02881103,0.0002,2]
[312295109,1705758639991,-309.39667725,0.0002,2]
[312295110,1705758640001,-269.92391195,0.0002,2]
[312295111,1705758640010,-391.0,0.00020722,2]
[312295112,1705758640020,-1764.32790583,0.00021,2]
[312295113,1705758640029,-327.38324213,0.00021,2]
[312295114,1705758640039,-4642.93341299,0.00021259,2]
[312295115,1705758640050,-2226.19575142,0.00021554,2]
[312295116,1705758640059,-166.666666,0.00021918,2]
[312295117,1705758640070,-197.33809252,0.00021993,2]
[312295118,1705758640080,-267.18664996,0.00021994,2]
[312295119,1705758640090,-183.93359239,0.00021994,2]
[312295120,1705758640102,-155.67227634,0.00021994,2]
[312295121,1705758640111,-214.49985454,0.00021994,2]
[312295122,1705758640121,-184.41586934,0.00021994,2]
[312295123,1705758640130,-155.16973362,0.00021994,2]
[312295124,1705758640140,-222.15590729,0.00021994,2]
[312295125,1705758640150,-155.27937595,0.00021994,2]
[312295126,1705758640160,-301.52967926,0.00021994,2]
[312295127,1705758640169,-197.87398921,0.00021994,2]
[312295128,1705758640180,-902.69207927,0.00021994,2]
[312295130,1705758640190,-155.2035582,0.00021994,2]
[312295132,1705758640199,-176.74369374,0.00021994,2]
[312295134,1705758640209,-155.22525312,0.00021994,2]
[312295136,1705758640218,-3966.85623058,0.00022,2]
[312295137,1705758640227,-293.14605446,0.00022,4]
[312295138,1705758640236,-425.80364021,0.00022,2]
[312295139,1705758640246,-309.44300568,0.000222,2]
[312295140,1705758640255,-1825.35938733,0.000222,2]
[312295141,1705758640264,-2083.53906819,0.000222,2]
[312295142,1705758640273,-300.0,0.000222,2]
[312295143,1705758640283,-620.06102847,0.000222,2]
[312295144,1705758640293,-155.26304351,0.000222,2]
[312295145,1705758640302,-1482.07644451,0.000222,5]
[312295146,1705758640311,-215.9467382,0.000222,2]
[312295147,1705758640321,-166.666666,0.00022431,2]
[312295149,1705758640330,-200.0,0.00022794,7]
[312295151,1705758640339,-348.0,0.00022794,7]
[312295152,1705758640349,-166.666666,0.00022944,2]
[312295153,1705758640358,-1570.89243892,0.00023,2]
[312295154,1705758640367,-500.0,0.00023288,2]
[312295156,1705758640377,-308.70305506,0.00023288,2]
[312295158,1705758640386,-500.0,0.00023288,2]
[312295160,1705758640395,-500.0,0.00023288,2]
[312295162,1705758640405,-500.0,0.00023288,2]
[312295163,1705758640414,-197.33397794,0.00023288,2]
[312295164,1705758640424,-500.0,0.00023288,2]
[312295165,1705758640432,-500.0,0.00023288,2]
[312295166,1705758640442,-506.55047548,0.00023288,2]
[312295167,1705758640451,-500.0,0.00023288,2]
[312295168,1705758640461,-375.36063371,0.00023288,2]
[312295169,1705758640470,-500.0,0.00023288,2]
[312295170,1705758640480,-500.0,0.00023288,2]
[312295171,1705758640489,-171.51744405,0.00023288,2]
[312295172,1705758640498,-500.0,0.00023288,2]
[312295173,1705758640507,-500.0,0.00023288,2]
[312295174,1705758640517,-500.0,0.00023288,2]
[312295175,1705758640526,-500.0,0.00023288,2]
[312295176,1705758640535,-622.80013328,0.00023288,2]
[312295177,1705758640544,-500.0,0.00023288,2]
[312295178,1705758640553,-402.91046642,0.00023288,2]
[312295179,1705758640564,-427.252143,0.00023288,2]
[312295180,1705758640574,-152.59005107,0.00023288,2]
[312295181,1705758640583,-166.666666,0.00023456,2]
[312295182,1705758640594,-1010.64614049,0.000239,2]
[312295183,1705758640604,-166.666666,0.00023969,2]
[312295184,1705758640613,-4012.5594856,0.00024,2]
[312295185,1705758640623,-166.666666,0.00024482,2]
[312295186,1705758640632,-1000.0,0.00024657,2]
[312295187,1705758640642,-1000.0,0.00024657,2]
[312295188,1705758640652,-1000.0,0.00024657,2]
[312295189,1705758640661,-1000.0,0.00024657,2]
[312295190,1705758640671,-302.72586559,0.00024657,2]
[312295191,1705758640680,-500.0,0.00024657,2]
[312295192,1705758640689,-349.89304428,0.00024657,2]
[312295193,1705758640699,-380.0,0.00024658,2]
[312295194,1705758640708,-4202.76544933,0.00025,2]
[312295195,1705758640717,-964.32268771,0.00025,2]
[312295196,1705758640727,-678.93201338,0.00025,2]
[312295197,1705758640736,-155.16885659,0.00025,2]
[312295198,1705758640745,-193.30440341,0.00025,2]
[312295199,1705758640756,-155.5855391,0.00025,2]
[312295200,1705758640765,-200.0,0.00025073,7]
[312295201,1705758640774,-200.0,0.00025073,7]
[312295202,1705758640784,-368.0,0.00025073,7]
[312295203,1705758640794,-200.0,0.00025479,2]
[312295204,1705758640803,-151.0,0.00026092,2]
[312295205,1705758640815,-3946.3,0.00027397,3]
[312295206,1705758640825,-200.0,0.00027581,15]
[312295207,1705758640835,-200.0,0.00027581,15]
[312295208,1705758640845,-200.0,0.00027581,15]
[312295209,1705758640856,-200.0,0.00027581,15]
[312295210,1705758640866,-275.0,0.00027581,15]
[312295211,1705758640876,-290.16476431,0.00028,2]
[312295212,1705758640886,-188.50754412,0.00028338,3]
[312295213,1705758640896,-169.798278,0.00028338,2]
[312295214,1705758640906,-151.0,0.00028338,2]
[312295215,1705758640916,-151.0,0.00028338,2]
[312295216,1705758640925,-83313.38223331,0.00028338,2]
[312295217,1705758640935,-5000.0,0.00028339,5]
[312295218,1705758640945,-5000.0,0.00028339,5]
[312295219,1705758640955,-160.0,0.00028498,10]
[312295220,1705758640964,-475.68781302,0.00028498,2]
[312295221,1705758640974,-381.47122728,0.00028498,4]
[312295222,1705758641114,-500.0,0.00028498,4]
[312295223,1705758641124,-486.31791544,0.00028498,4]
[312295224,1705758641133,-183.63660889,0.00028498,4]
[312295225,1705758641143,-436.74078263,0.00028498,4]
[312295226,1705758641152,-151.0,0.00028499,2]
[312295227,1705758641161,-151.0,0.00028499,2]
[312295228,1705758641171,-1061.909087,0.00028499,2]
[312295229,1705758641180,-1061.909087,0.00028499,2]
[312295230,1705758641191,-6406.763838,0.00028499,2]
[312295231,1705758641200,-6406.763838,0.00028499,2]
[312295232,1705758641210,-5000.0,0.00028499,5]
[312295233,1705758641219,-5000.0,0.00028499,5]
[312295234,1705758641229,-5000.0,0.00028499,5]
[312295235,1705758641238,-5000.0,0.00028499,5]
[312295236,1705758641247,-79643.05413968,0.00028499,5]
[312295237,1705758641256,-5000.0,0.00028499,5]
[312295238,1705758641266,-5000.0,0.00028499,5]
[312295240,1705758641275,-14704.69196021,0.00028499,4]
[312295242,1705758641284,-5665.16781552,0.00028499,4]
[312295243,1705758641293,-5000.0,0.00028499,5]
[312295245,1705758641302,-210.167992,0.00028767,2]
[312295246,1705758641315,-50000.0,0.00028784,5]
[312295247,1705758641323,-150.0,0.00028793,2]
[312295248,1705758641332,-46047.53056076,0.000288,2]
[312295249,1705758641342,-763.70587335,0.000288,2]
[312295250,1705758641351,-3216.27669923,0.000288,2]
[312295251,1705758641361,-154.95351395,0.000288,2]
[312295252,1705758641370,-305.59076867,0.000288,2]
[312295253,1705758641379,-155.78027594,0.000288,2]
[312295254,1705758641388,-154.9690062,0.000288,2]
[312295255,1705758641398,-151.725022,0.000288,2]
[312295256,1705758641407,-151.0,0.000288,2]
[312295257,1705758641417,-1061.909087,0.000288,2]
[312295258,1705758641426,-1061.909087,0.000288,2]
[312295259,1705758641435,-6406.763838,0.000288,2]
[312295260,1705758641444,-6406.763838,0.000288,2]
[312295261,1705758641453,-151.0,0.000288,2]
[312295262,1705758641463,-151.0,0.000288,2]
[312295263,1705758641472,-892.0,0.000288,2]
[312295264,1705758641482,-151.0,0.00028898,2]
[312295265,1705758641491,-157.55045544,0.00029,2]
[312295266,1705758641500,-154.70605849,0.00029,10]
[312295267,1705758641509,-832.72568573,0.00029,2]
[312295268,1705758641518,-2036.9268077,0.00029,2]
[312295269,1705758641527,-1000.0,0.00029,29]
[312295270,1705758641536,-1879.95128807,0.00029,2]
[312295271,1705758641546,-200.0,0.00029,4]
[312295272,1705758641555,-208.4755949,0.00029178,2]
[312295273,1705758641565,-218.9255726,0.00029315,2]
[312295274,1705758641576,-199.0990555,0.00029315,2]
[312295275,1705758641585,-199.0990555,0.00029315,2]
[312295276,1705758641594,-199.0990555,0.00029315,2]
[312295277,1705758641604,-77949.93068581,0.00029489,2]
[312295278,1705758641613,-151.0,0.00029489,2]
[312295279,1705758641622,-1061.909087,0.00029489,2]
[312295280,1705758641631,-1061.909087,0.00029489,2]
[312295281,1705758641640,-6406.763838,0.00029489,2]
[312295282,1705758641650,-6406.763838,0.00029489,2]
[312295283,1705758641659,-151.0,0.00029489,2]
[312295284,1705758641668,-151.0,0.00029489,2]
[312295285,1705758641677,-151.0,0.00029489,2]
[312295286,1705758641686,-151.0,0.00029489,2]
[312295287,1705758641695,-210.167992,0.00029648,2]
[312295288,1705758641705,-15905.2680538,0.0002969,2]
[312295289,1705758641714,-150.89807138,0.00029766,2]
[312295290,1705758641724,-10023.82624041,0.00029771,2]
[312295291,1705758641733,-160.0,0.00029789,10]
[312295292,1705758641743,-309705.21927401,0.0002979,7]
[312295293,1705758641752,-151.0,0.0002979,2]
[312295294,1705758641761,-1061.909087,0.0002979,2]
[312295295,1705758641770,-1061.909087,0.0002979,2]
[312295296,1705758641780,-6406.763838,0.0002979,2]
[312295297,1705758641789,-6406.763838,0.0002979,2]
[312295298,1705758641799,-151.0,0.0002979,2]
[312295299,1705758641810,-151.0,0.0002979,2]
[312295300,1705758641819,-151.0,0.0002979,2]
[312295301,1705758641828,-244.658736,0.0002979,2]
[312295302,1705758641838,-5000.0,0.00029863,2]
[312295303,1705758641847,-227.28214938,0.00029999,10]
[312295304,1705758641856,-22165.86370198,0.0003,2]
[312295305,1705758641865,-30497.95907604,0.0003,3]
[312295306,1705758641874,-345.5207472,0.0003,2]
[312295307,1705758641890,-2104.48868232,0.0003,4]
[312295308,1705758641903,-18589.14989047,0.0003,2]
[312295309,1705758641913,-699.95088598,0.0003,2]
[312295310,1705758641922,-682.57522362,0.0003,3]
[312295311,1705758641932,-351.14579978,0.0003,2]
[312295312,1705758641941,-564.03409177,0.0003,4]
[312295313,1705758641951,-27897.38552471,0.0003,2]
[312295314,1705758641961,-1000.0,0.0003,2]
[312295315,1705758641971,-1000.0,0.0003,30]
[312295316,1705758641981,-155.3990448,0.0003,2]
[312295317,1705758641990,-2154.69143367,0.0003,2]
[312295318,1705758642000,-154.73694719,0.0003,2]
[312295319,1705758642009,-151.0,0.0003,2]
[312295320,1705758642019,-1061.909087,0.0003,2]
[312295321,1705758642028,-1061.909087,0.0003,2]
[312295322,1705758642038,-6406.763838,0.0003,2]
[312295323,1705758642047,-6406.763838,0.0003,2]
[312295324,1705758642057,-151.0,0.0003,2]
[312295325,1705758642067,-151.0,0.0003,2]
[312295326,1705758642076,-151.0,0.0003,2]
[312295327,1705758642086,-283.0,0.0003,2]
[312295328,1705758642096,-1993.7293308,0.00030004,3]
[312295329,1705758642109,-203.86620558,0.00030137,7]
[312295330,1705758642118,-200.0,0.00030339,15]
[312295331,1705758642128,-200.0,0.00030339,15]
[312295332,1705758642138,-200.0,0.00030339,15]
[312295333,1705758642147,-200.0,0.00030339,15]
[312295334,1705758642157,-200.0,0.00030339,15]
[312295335,1705758642166,-200.0,0.00030339,15]
[312295336,1705758642176,-305.0,0.00030339,15]
[312295337,1705758642186,-247.53351132,0.000305,2]
[312295338,1705758642195,-210.167992,0.00030528,2]
[312295339,1705758642205,-186.5,0.0003067,30]
[312295340,1705758642214,-162.0,0.0003068,30]
[312295341,1705758642223,-150.5,0.0003068,30]
[312295342,1705758642233,-162.0,0.0003069,30]
[312295343,1705758642243,-162.0,0.000307,30]
[312295344,1705758642253,-155.18124402,0.00030701,7]
[312295345,1705758642262,-238.14143998,0.00031,4]
[312295346,1705758642272,-2846.05665284,0.00031,2]
[312295347,1705758642282,-134702.09396509,0.00031,2]
[312295348,1705758642291,-29863.38712038,0.00031,2]
[312295349,1705758642301,-1000.0,0.00031,31]
[312295350,1705758642311,-151.0,0.00031,2]
[312295351,1705758642320,-1061.909087,0.00031,2]
[312295352,1705758642329,-1061.909087,0.00031,2]
[312295353,1705758642338,-1500.0,0.00031,2]
[312295354,1705758642348,-6406.763838,0.00031,2]
[312295355,1705758642357,-6406.763838,0.00031,2]
[312295356,1705758642367,-151.0,0.00031,2]
[312295357,1705758642377,-151.0,0.00031,2]
[312295358,1705758642386,-835.03434785,0.00031167,2]
[312295359,1705758642395,-1000.0,0.00031167,7]
[312295360,1705758642405,-700.0,0.00031167,2]
[312295361,1705758642414,-1000.0,0.00031167,7]
[312295362,1705758642424,-905.20059532,0.00031167,2]
[312295363,1705758642434,-1000.0,0.00031167,7]
[312295364,1705758642443,-1000.0,0.00031167,7]
[312295365,1705758642452,-230.5869484,0.00031167,2]
[312295366,1705758642461,-1000.0,0.00031167,7]
[312295367,1705758642471,-1000.0,0.00031167,7]
[312295368,1705758642481,-1000.0,0.00031167,7]
[312295369,1705758642490,-1000.0,0.00031167,7]
[312295370,1705758642500,-1000.0,0.00031167,7]
[312295371,1705758642509,-1000.0,0.00031167,7]
[312295372,1705758642518,-2266.15434881,0.00031167,2]
[312295373,1705758642527,-563.91377728,0.00031167,2]
[312295375,1705758642537,-428.01041075,0.00031167,2]
[312295377,1705758642546,-1000.0,0.00031167,7]
[312295378,1705758642557,-408.51606226,0.00031167,2]
[312295379,1705758642567,-700.0,0.00031167,2]
[312295380,1705758642576,-1000.0,0.00031167,7]
[312295381,1705758642586,-1000.0,0.00031167,7]
[312295382,1705758642596,-230.5869484,0.00031167,2]
[312295383,1705758642606,-1000.0,0.00031167,7]
[312295384,1705758642616,-12423.32320365,0.00031295,2]
[312295385,1705758642626,-210.167992,0.00031409,2]
[312295386,1705758642636,-1000.0,0.00031697,2]
[312295387,1705758642646,-151.0,0.00031703,2]
[312295388,1705758642655,-150.0,0.00031793,2]
[312295389,1705758642665,-3.34888149,0.00032,4]
[312295390,1705758642675,-796.1115468,0.00032,5]
[312295391,1705758642685,-686.62627649,0.00032,4]
[312295392,1705758642695,-283.12887752,0.00032,3]
[312295393,1705758642704,-195.24830444,0.00032,4]
[312295394,1705758642714,-154.69061876,0.00032,4]
[312295395,1705758642723,-1200.0,0.00032,4]
[312295396,1705758642733,-156.71629179,0.00032,4]
[312295397,1705758642742,-1500.0,0.00032,2]
[312295398,1705758642753,-1000.0,0.00032,32]
[312295400,1705758642762,-1500.0,0.00032,2]
[312295402,1705758642773,-151.0,0.00032,2]
[312295404,1705758642783,-151.0,0.00032,2]
[312295406,1705758642792,-620.00169004,0.0003201,2]
[312295408,1705758642802,-50000.0,0.00032246,7]
[312295410,1705758642812,-288.0,0.00032246,2]
[312295412,1705758642822,-1061.909087,0.00032246,2]
[312295414,1705758642832,-1061.909087,0.00032246,2]
[312295416,1705758642842,-6406.763838,0.00032246,2]
[312295418,1705758642852,-6406.763838,0.00032246,2]
[312295420,1705758642862,-210.167992,0.0003229,2]
[312295422,1705758642871,-331.03561731,0.00032458,2]
[312295424,1705758642881,-1094.47895322,0.000325,20]
[312295426,1705758642891,-1532.87710371,0.000326,7]
[312295428,1705758642900,-2917.5891822,0.0003268,15]
[312295430,1705758642910,-151.0,0.00032876,2]
[312295433,1705758642920,-151.0,0.00032876,2]
[312295434,1705758642929,-378.16738127,0.00032876,2]
[312295435,1705758642939,-500.0,0.00032876,7]
[312295436,1705758642948,-500.0,0.00032876,7]
[312295437,1705758642957,-369.66881845,0.00032876,7]
[312295439,1705758642967,-500.0,0.00032876,7]
[312295441,1705758642976,-500.0,0.00032876,7]
[312295443,1705758642986,-403.27521988,0.00032876,7]